Cogmind - Beta 14 @@@ ROGUE MODE // 2024.11.26 @ 23:24:20 Player: Tech Result: Destroyed by as-42224 with Assembled Rifle Performance ------------- Evolutions (0) 0 Regions Visited (2) 400 Robots Destroyed (8) 40 Value Destroyed (107) 107 Prototype IDs (0) 0 Alien Tech Used (0) 0 Bonus (0) 0 TOTAL SCORE: 547 Bonus ------- None Cogmind --------- Core Integrity 0/250 Matter 296/300 Energy 100/100 System Corruption 7% Temperature Warm (130) Movement Core (50) Location -10/Mines Parts ------- > --- POWER (1) -------- (None) > --- PROPULSION (2) --- (None) > --- UTILITY (2) ------ (None) > --- WEAPON (2) ------- Assault Rifle > --- INVENTORY (5) ---- Ion Engine Light Ion Engine Small Storage Unit Peak State ------------ > --- POWER ------------ Light Ion Engine > --- PROPULSION ------- Compact Wheel Compact Wheel > --- UTILITY ---------- Small Storage Unit Medium Matter Pod > --- WEAPON ----------- Assault Rifle Light Assault Rifle > --- INVENTORY -------- Small Laser [Rating: 7] Favorites ----------- Power Light Ion Engine Engine Light Ion Engine Propulsion Wheel Wheel Wheel Utility Medium Matter Pod Device ECM Suite Storage Medium Matter Pod Protection Core Shielding Weapon Assault Rifle Energy Gun Small Laser Energy Cannon Beam Cannon Ballistic Gun Assault Rifle Build | -11 -10 -10 ------- Run | Yrd Mat Min Slots Evolved . | . . . Power . | . . . Propulsion . | . . . Utility . | . . . Weapon . | . . . Parts Attached 19 | 9 8 2 Power 2 | 1 1 . Engine 2 | 1 1 . Core . | . . . Reactor . | . . . Propulsion 6 | 3 3 . Treads . | . . . Leg . | . . . Wheel 6 | 3 3 . Hover . | . . . Flight . | . . . Utility 5 | 2 2 1 Device 2 | . 2 . Storage 2 | 2 . . Processor . | . . . Hackware . | . . . Protection 1 | . . 1 Artifact . | . . . Weapon 6 | 3 2 1 Energy Gun 1 | 1 . . Energy Cannon 2 | . 2 . Ballistic Gun 3 | 2 . 1 Ballistic Cannon . | . . . Launcher . | . . . Special Weapon . | . . . Impact Weapon . | . . . Slashing Weapon . | . . . Piercing Weapon . | . . . Special Melee Weapon . | . . . Unidentified Prototypes . | . . . Parts Lost 9 | . 1 8 Power 1 | . . 1 Propulsion 3 | . 1 2 Utility 3 | . . 3 Weapon 2 | . . 2 Highest Loss Streak 8 | . 1 8 To Critical Strikes . | . . . Average Slot Usage (%) 93 | . 96 83 Engine 13 | . 14 10 Wheel 24 | . 24 22 Device 17 | . 17 20 Storage 8 | . 11 . Energy Cannon 11 | . 8 24 Ballistic Gun 16 | . 20 2 Peak Build Rating 7 | 7 7 7 Average Rating 6 | 5 6 5 On Entrance 4 | . 7 7 Naked Turns . | . . . Heaviest Build 15 | 13 15 14 Greatest Support 32 | 32 26 20 Greatest Overweight (x) 3 | 3 1 . Average Overweight (x) . | . . . Largest Inventory Capacity 8 | 8 8 5 Average Capacity 6 | 7 5 5 Most Carried 5 | 2 5 5 Average Carried 3 | 1 4 4 Final Capacity 8 | 8 5 5 Final Carried 4 | 2 4 3 Class Distribution -------------------- 100% | Mutant Dominant Class ---------------- Mutant | -10/Materials Mutant | -10/Mines Resources | -11 -10 -10 ----------- Run | Yrd Mat Min Matter Collected 528 | 373 122 33 Remotely . | . . . Salvage Created 281 | 158 110 13 Parts 11 | 5 6 . Haulers Intercepted . | . . . Recyclers Shooed 1 | . 1 . Parts Field Recycled . | . . . Retrieved Matter . | . . . Parts Self-Destructed . | . . . Prevented . | . . . Kills | -11 -10 -10 ------- Run | Yrd Mat Min Combat Hostiles Destroyed 4 | . 3 1 Guns 4 | . 3 1 Classes Destroyed 6 | 3 2 1 Worker 3 | 2 1 . Tunneler 1 | 1 . . Recycler 1 | 1 . . Swarmer 1 | . 1 . Grunt 2 | . 2 . Assembled 1 | . . 1 Best Kill Streak 2 | 1 2 1 Combat Bots Only 2 | . 2 1 Max Kills in Single Turn 1 | 1 1 1 Gunslinging . | . . . Exploded . | . . . Melee . | . . . Uniques/NPCs Destroyed . | . . . Combat | -11 -10 -10 -------- Run | Yrd Mat Min Hostile Shots Fired 74 | . 21 53 Missed 20 | . 5 15 Damage Taken 901 | . 203 698 Core 250 | . 13 237 Absorbed by Shields . | . . . Redirected to Shielding 48 | . . 48 Regen/Repaired (Parts) 32 | . 32 . Core Remaining (%) 100 | 100 . . Volleys Fired 37 | 15 13 9 Largest 2 | 2 2 2 Hottest 120 | 40 120 120 Shots Fired 69 | 30 26 13 Gun 58 | 30 24 4 Cannon 11 | . 2 9 Launcher . | . . . Special . | . . . Kinetic 58 | 30 24 4 Thermal 11 | . 2 9 Explosive . | . . . Electromagnetic . | . . . Robot Hit Streak 4 | 3 4 4 Robot Miss Streak 6 | 4 2 6 Penetration Max . | . . . Secondary Targets 1 | . 1 . Max Gunslinging Chain 1 | . 1 . Shots Hit Robots 33 | 13 14 6 Core Hits 16 | 5 7 4 Critical Kills . | . . . Critical Parts Destroyed . | . . . Critical Strikes . | . . . Melee Attacks . | . . . Impact . | . . . Slashing . | . . . Piercing . | . . . Sneak Attacks . | . . . Combat Hostiles . | . . . Follow-up Attacks . | . . . Damage Inflicted 418 | 145 164 109 Guns 364 | 145 164 55 Cannons 54 | . . 54 Explosions . | . . . Melee . | . . . Ramming . | . . . Kinetic 364 | 145 164 55 Thermal 54 | . . 54 Explosive . | . . . Electromagnetic . | . . . Impact . | . . . Slashing . | . . . Piercing . | . . . Highest Corruption 7 | . . 7 Average Corruption 5 | . . 5 Corruption Purged . | . . . Corruption Blocked . | . . . Effects 1 | . . 1 Data Loss (major) 1 | . . 1 Overload Shots . | . . . Overflow Damage . | . . . Projectiles . | . . . Explosions . | . . . Melee . | . . . Knockbacks . | . . . Impact . | . . . Kinetic . | . . . Secondary . | . . . Self-Inflicted Damage . | . . . Shots . | . . . Rammed . | . . . Targets Rammed . | . . . Kicked . | . . . Crushed . | . . . Highest Temperature 220 | . 60 220 Average Temperature 78 | . 17 134 Received Heat Transfer 186 | . 126 60 Siege Activations . | . . . Robots Corrupted . | . . . Combat Hostiles . | . . . Parts Fried . | . . . Impact Corruptions . | . . . Robots Melted . | . . . Combat Hostiles . | . . . Parts Melted . | . . . Heat Transferred 111 | . . 111 Parts Sabotaged . | . . . Parts Stolen . | . . . Parts Stripped . | . . . Power Chain Reactions . | . . . Alert | -11 -10 -10 ------- Run | Yrd Mat Min Peak Influence 125 | 20 125 48 Initial 48 | . 13 48 Average 43 | 10 75 30 Maximum Alert Level . | . . . Low Security (%) 100 | 100 100 100 Level 1 . | . . . Level 2 . | . . . Level 3 . | . . . Level 4 . | . . . Level 5 . | . . . High Security . | . . . Max Security . | . . . Squads Dispatched . | . . . Investigation . | . . . Extermination . | . . . Reinforcement . | . . . Assault . | . . . Garrison . | . . . Intercept . | . . . Searches Triggered . | . . . Construction Impeded . | . . . Haulers Reinforced . | . . . Active Scanning Responses . | . . . Cargo Convoy Interrupts . | . . . Stealth | -11 -10 -10 --------- Run | Yrd Mat Min Distress Signals 2 | . 2 . Communications Jammed . | . . . Distress Signals . | . . . Times Spotted 21 | . 10 11 Peak Tracking Total 11 | . 7 11 Tactical Retreats 4 | . 3 1 Traps | -11 -10 -10 ------- Run | Yrd Mat Min Traps Triggered . | . . . Indirectly . | . . . Trap Hack Attempts . | . . . Triggered . | . . . Disarmed . | . . . Reprogrammed . | . . . Reused . | . . . Traps Extracted . | . . . Installed . | . . . Triggered . | . . . Machines | -11 -10 -10 ---------- Run | Yrd Mat Min Machines Disabled . | . . . Max in Single Turn . | . . . Machines Repaired . | . . . Machines Dismantled . | . . . Machines Sabotaged . | . . . Overloaded Fab Kills . | . . . Hacking | -11 -10 -10 --------- Run | Yrd Mat Min Machines Accessed 2 | . 2 . Terminals 1 | . 1 . Fabricators . | . . . Repair Stations 1 | . 1 . Recycling Units . | . . . Scanalyzers . | . . . Garrison Access . | . . . Total Hacks 8 | . 8 . Successful 4 | . 4 . Failed 4 | . 4 . Catastrophic . | . . . Database Lockouts . | . . . Manual . | . . . Terminals 2 | . 2 . Fabricators . | . . . Repair Stations 6 | . 6 . Recycling Units . | . . . Scanalyzers . | . . . Garrison Access . | . . . Terminal Hacks 1 | . 1 . Emergency Access Points 1 | . 1 . Fabricator Hacks . | . . . Repair Station Hacks 3 | . 3 . Scan Component 2 | . 2 . Repair 1 | . 1 . Recycling Unit Hacks . | . . . Scanalyzer . | . . . Garrison Access Hacks . | . . . Unauthorized Hacks . | . . . Terminals . | . . . Fabricators . | . . . Repair Stations . | . . . Recycling Units . | . . . Scanalyzers . | . . . Garrison Access . | . . . Data Cores Recovered . | . . . Used . | . . . Hacking Detections 2 | . 2 . Full Trace Events . | . . . Feedback Events . | . . . Feedback Blocked . | . . . Robot Schematics Acquired . | . . . Robots Built . | . . . Authchips . | . . . Time . | . . . Total Robot Build Rating . | . . . Part Schematics Acquired . | . . . Parts Built . | . . . Authchips . | . . . Time . | . . . Total Part Build Rating . | . . . Parts Repaired 1 | . 1 . Time 36 | . 36 . Parts Recycled . | . . . Recycled Matter . | . . . Retrieved Matter . | . . . Retrieved Components . | . . . Parts Scanalyzed . | . . . Part Schematics Acquired . | . . . Parts Damaged . | . . . Bothacking | -11 -10 -10 ------------ Run | Yrd Mat Min Used RIF Installer . | . . . Robots Hacked . | . . . Non-combat . | . . . Combat . | . . . Robot Hacks Applied . | . . . Relay Couplers Released . | . . . Fabnet Peak Effective % . | . . . Robots Rewired . | . . . Allies Hacked . | . . . Hacks Repelled . | . . . Allies | -11 -10 -10 -------- Run | Yrd Mat Min Total Allies 2 | . . 2 Largest Group 2 | . . 2 Highest-Rated Group 39 | . . 39 Highest-Rated Ally 31 | . . 31 Total Orders . | . . . Ally Attacks 7 | . . 7 Total Damage 42 | . . 42 Kills . | . . . Allies Corrupted . | . . . Allies Melted . | . . . Intel | -11 -10 -10 ------- Run | Yrd Mat Min Robot Analysis Total . | . . . Derelict Logs Recovered . | . . . Drone Launches . | . . . Drone Recoveries . | . . . Exploration | -11 -10 -10 ------------- Run | Yrd Mat Min Turns Passed 593 | 242 282 69 Spaces Moved 485 | 203 227 55 Core 39 | 39 . . Treads . | . . . Legs . | . . . Wheels 446 | 164 227 55 Hover . | . . . Flight . | . . . Fastest Speed 50 | 50 80 80 Average Speed 87 | 90 86 80 Slowest Speed 200 | 200 95 80 Overloaded Moves . | . . . Propulsion Burnouts . | . . . Robots Hopped . | . . . Cave-ins Triggered . | . . . Exploration Rate (%) 23 | 9 46 14 Regions Visited 2 Branch Regions 1 Pre-discovered Areas . | . . . Known Exits Taken . | . . . Unknown Exits Taken 2 | 1 1 . Scrap Searched 1 | . . 1 Spaces Dug . | . . . Terrain Destroyed . | . . . Melee . | . . . Projectile . | . . . AOE . | . . . Terrain Rammed . | . . . Walls Destroyed . | . . . Machines Disabled . | . . . Actions | -11 -10 -10 --------- Run | Yrd Mat Min Total 587 | 230 289 68 Wait 33 | 2 30 1 Move 483 | 202 226 55 Hop . | . . . Pick Up 4 | . 3 1 Fast Attach 16 | 9 7 . Attach 3 | . 1 2 Detach 5 | 2 3 . Swap . | . . . Drop 6 | . 6 . Fire 37 | 15 13 9 Melee . | . . . Ram . | . . . Kick . | . . . Crush . | . . . Escape Stasis . | . . . Rewire . | . . . Trap . | . . . Miscellaneous . | . . . Route ------- -11/Scrapyard -10/Materials (discovered 2 exits: [*Mat] / [*Min]) -10/Mines History --------- Turn | Location | Event 10 | -11/Scrapyard | Discovered new exit (range 15) 243 | -11/Scrapyard | Entered Materials 307 | -10/Materials | Build established: Mutant 428 | -10/Materials | Discovered new exit (range 5) 494 | -10/Materials | Repaired Broken Wheel 509 | -10/Materials | Discovered new exit (range 8) 525 | -10/Materials | Entered Mines 545 | -10/Mines | Assembled infested the area 589 | -10/Mines | Core integrity fell below 50% 592 | -10/Mines | Core integrity fell below 20% 594 | -10/Mines | Destroyed by as-42224 with Assembled Rifle Last Messages --------------- Searching scrap... Found Ion Engine. Found 41 Matter. Acquired 20 matter. Acquired Ion Engine. ECM Suite destroyed. Wheel destroyed. Ion Engine destroyed. System corrupted by crushing effect (+4). Seismic Detector destroyed. Wheel destroyed. Beam Cannon destroyed. Knocked back. Beam Cannon destroyed. System corrupted by crushing effect (+3). System corrupted: Substantial component data lost. as-75561 destroyed. as-77770 destroyed. Acquired 13 matter. Core Shielding destroyed. Map ----- +----------------------------------------------------+ | | | | | | | | | | | | | | | | | ?????????????????????????????????????? | | ?????????????????????????????????????? | | ?????????????????????????????????????? | | ?????????????????????????????????????? | | ?????????????????????????????????????? | | ??????????????? ???????????????????? | | ???????????# ???????????????????? | | ?????????? ???????????????????? | | ??????????? ???????????????????? | | ???????????# ??????????????????? | | ???????????# ??????????????????? | | ????????????# ??????????????????? | | ?????????????# ??????????????????? | | ??????????????# ??????????????????? | | ??????????????# ??????????????????? | | ?????????????## ??????????#???????? | | ?????????????# ########a!#???????? | | ?????????????# a a@a= #???????? | | ?????????????# a %a a #???????? | | ?????????????## # ##########???????? | | ??????????????##??# #????????????????? | | ??????????????????# #????????????????? | | ??????????????????# #####????????????? | | ??????????????????# %#????????????? | | ??????????????????##### #????????????? | | ??????????????????????# ##???????????? | | ?????????????????????## ###?????????? | | ?????????????????????# ##????????? | | ?????????????????????# #????????? | | ????????????????????## """ #????????? | | ????????????????????# """ #????????? | | ????????????????????# """ #????????? | | ????????????????????## ##???????? | | ?????????????????????## ##??????? | | ??????????????????????## ##?????? | | ????????????????##?????## #?????? | | ???????????????## #?????# #?????? | | ??????????????## ?????## #?????? | | ??????????????# ##????# ## #?????? | | ??????????????# ###??# #? #?????? | | ??????????????# ##?# #? #?????? | | ???????????????# ### ## #?????? | +----------------------------------------------------+ Best States ------------- Heat Dissipation 25 Energy Generation 10 Energy Capacity 250 Matter Stores 400 Matter Capacity 400 Sight Range 16 Terrain Scan Density 10 ECM Strength 1 Core Shielding 20 Evasion (%) 50 Item Schematics ----------------- None Robot Schematics ------------------ None Fabricated ------------ Nothing Alien Tech Used ----------------- None Achievements -------------- None Challenges ------------ None Game ------ Seed PowerRestorationTelecube Manual? 0 Play Time 00:14:46 Cumulative 5.6 hours Start 2024.11.26 @ 23:10:11 End 2024.11.26 @ 23:24:20 Sessions 1 Manual Loads 0 Difficulty Rogue Special Mode None Game No. 7 Rogue 7 Adventurer 0 Explorer 0 Win Type - Total 0 Types 0/0/0/0/0/0/0/0/0 Lore% 1 Gallery% 9 Achievement% 8 Wizard Run 0 Options --------- Layout 1 ASCII 0 Keyboard 1 Movement Numpad Keybinds 0 Fullscreen 1 Font 32/SmallcapsGlow Map View 65x17 Zoom Use 100% Tactical HUD 0 Map Filters NONE Filters NONE Steam 1 RUN: 4b1359de-7847-41b7-9a3d-2daa14800a36